fUSD/lending_fUSD_20260628
["ID","MTS","AMOUNT","RATE_DAILY","PERIOD"]
[426581078,1782629434000,-500.0,0.00024979,2]
[426581076,1782629434000,-500.0,0.00024979,2]
[426581077,1782629434000,-500.0,0.00024979,2]
[426581061,1782629434000,-500.0,0.00024173,2]
[426581089,1782629434000,-378.88395751,0.00024995,2]
[426581088,1782629434000,-222.08282387,0.00024995,2]
[426581095,1782629434000,-194.0,0.00025,2]
[426581091,1782629434000,-397.83896346,0.00024995,2]
[426581096,1782629434000,-175.47238519,0.00025,2]
[426581093,1782629434000,-231.7,0.00025,2]
[426581094,1782629434000,-285.0,0.00025,2]
[426581092,1782629434000,-326.24106321,0.00024995,2]
[426581081,1782629434000,-1255.9488366,0.0002498,2]
[426581097,1782629434000,-283.76899037,0.00025,2]
[426581082,1782629434000,-321.02980942,0.00024995,2]
[426581085,1782629434000,-376.91266927,0.00024995,2]
[426581083,1782629434000,-226.651026,0.00024995,2]
[426581080,1782629434000,-500.0,0.00024979,2]
[426581079,1782629434000,-500.0,0.00024979,2]
[426581087,1782629434000,-247.70766305,0.00024995,2]
[426581090,1782629434000,-351.4174951,0.00024995,2]
[426581086,1782629434000,-328.5311421,0.00024995,2]
[426581084,1782629434000,-409.20987537,0.00024995,2]
[426581119,1782629438000,-184.12508513,0.00025817,2]
[426581116,1782629438000,-171.02315699,0.00025816,2]
[426581124,1782629438000,-565.36900391,0.00025836,2]
[426581118,1782629438000,-246.54053072,0.00025816,2]
[426581121,1782629438000,-481.54471413,0.00025836,2]
[426581135,1782629438000,-527.12624265,0.00025836,2]
[426581127,1782629438000,-215.39703235,0.00025836,2]
[426581128,1782629438000,-247.60756891,0.00025836,2]
[426581129,1782629438000,-323.98650751,0.00025836,2]
[426581133,1782629438000,-206.91955393,0.00025836,2]
[426581120,1782629438000,-185.76601182,0.00025817,2]
[426581123,1782629438000,-613.81481305,0.00025836,2]
[426581122,1782629438000,-453.302052,0.00025836,2]
[426581108,1782629438000,-267.05241939,0.00025009,14]
[426581125,1782629438000,-492.79671315,0.00025836,2]
[426581117,1782629438000,-163.91611446,0.00025816,2]
[426581115,1782629438000,-164.01696636,0.00025816,2]
[426581113,1782629438000,-170.11,0.00025434,2]
[426581110,1782629438000,-4558.158,0.00025009,14]
[426581114,1782629438000,-170.11,0.00025434,2]
[426581111,1782629438000,-434.80919189,0.00025302,2]
[426581112,1782629438000,-363.22386272,0.00025397,2]
[426581132,1782629438000,-568.32593626,0.00025836,2]
[426581109,1782629438000,-2730.0429504,0.00025009,14]
[426581107,1782629438000,-371.74506558,0.00025009,14]
[426581106,1782629438000,-217.23100963,0.00025,2]
[426581105,1782629438000,-818.16,0.00024174,2]
[426581126,1782629438000,-495.41532611,0.00025836,2]
[426581130,1782629438000,-120.17914024,0.00025836,2]
[426581137,1782629438000,-210.33442284,0.00025836,2]
[426581131,1782629438000,-168.2909923,0.00025836,2]
[426581163,1782629438000,-753.82533854,0.00026396,2]
[426581164,1782629438000,-160.95530196,0.00026396,2]
[426581162,1782629438000,-260.18630874,0.00026396,2]
[426581161,1782629438000,-419.76676926,0.00026396,2]
[426581160,1782629438000,-642.05961884,0.00026396,2]
[426581158,1782629438000,-328.03393273,0.00026396,2]
[426581153,1782629438000,-368.25017026,0.00026377,2]
[426581159,1782629438000,-818.41975073,0.00026396,2]
[426581134,1782629438000,-227.75631169,0.00025836,2]
[426581155,1782629438000,-410.26406266,0.00026377,2]
[426581152,1782629438000,-166.52302095,0.00026376,2]
[426581151,1782629438000,-493.08106145,0.00026376,2]
[426581154,1782629438000,-174.84406195,0.00026377,2]
[426581157,1782629438000,-500.0,0.00026381,2]
[426581156,1782629438000,-371.53202364,0.00026377,2]
[426581149,1782629438000,-327.83222891,0.00026376,2]
[426581150,1782629438000,-296.93343195,0.00026376,2]
[426581138,1782629438000,-596.75844519,0.00025836,2]
[426581139,1782629438000,-489.36159481,0.00025836,2]
[426581140,1782629438000,-185.49991239,0.00025836,2]
[426581145,1782629438000,-362.92220488,0.00026376,2]
[426581142,1782629438000,-6756.41699573,0.00026367,2]
[426581136,1782629438000,-248.1570555,0.00025836,2]
[426581141,1782629438000,-1119.19,0.00026311,7]
[426581143,1782629438000,-277.6113002,0.00026376,2]
[426581146,1782629438000,-267.33619326,0.00026376,2]
[426581147,1782629438000,-215.46262627,0.00026376,2]
[426581148,1782629438000,-342.04631398,0.00026376,2]
[426581144,1782629438000,-342.47480614,0.00026376,2]
[426581176,1782629440000,-757.76791501,0.00026396,2]
[426581175,1782629440000,-183.87199273,0.00026396,2]
[426581173,1782629440000,-156.21904389,0.00026396,2]
[426581174,1782629440000,-336.58198459,0.00026396,2]
[426581171,1782629440000,-259.9108716,0.00026396,2]
[426581170,1782629440000,-184.20775577,0.00026396,2]
[426581168,1782629440000,-468.02098738,0.00026396,2]
[426581169,1782629440000,-224.35435433,0.00026396,2]
[426581166,1782629440000,-496.10698224,0.00026396,2]
[426581167,1782629440000,-50.74764745,0.00026396,2]
[426581186,1782629440000,-239.78639407,0.00026396,2]
[426581172,1782629440000,-666.24847162,0.00026396,2]
[426581187,1782629440000,-420.66884568,0.00026396,2]
[426581183,1782629440000,-234.47356321,0.00026396,2]
[426581188,1782629440000,-795.67792692,0.00026396,2]
[426581177,1782629440000,-413.83910787,0.00026396,2]
[426581191,1782629440000,-652.48212641,0.00026396,2]
[426581192,1782629440000,-396.3667221,0.00026396,2]
[426581189,1782629440000,-350.46178865,0.00026396,2]
[426581182,1782629440000,-496.314111,0.00026396,2]
[426581190,1782629440000,-158.24503937,0.00026396,2]
[426581185,1782629440000,-159.99682597,0.00026396,2]
[426581181,1782629440000,-186.07501813,0.00026396,2]
[426581179,1782629440000,-387.04823068,0.00026396,2]
[426581184,1782629440000,-430.19537283,0.00026396,2]
[426581178,1782629440000,-455.51262337,0.00026396,2]
[426581180,1782629440000,-702.8349902,0.00026396,2]
[426581233,1782629441000,-262.40510032,0.000276,2]
[426581227,1782629441000,-500.0,0.000275,7]
[426581232,1782629441000,-1488.12996628,0.000276,2]
[426581229,1782629441000,-3819.02472936,0.000276,2]
[426581230,1782629441000,-1000.17377778,0.000276,2]
[426581237,1782629441000,-1000.17377778,0.000279,2]
[426581225,1782629441000,-303.38800563,0.00027397,2]
[426581236,1782629441000,-374.65,0.00027889,7]
[426581234,1782629441000,-3819.02472936,0.000278,2]
[426581226,1782629441000,-455.08200844,0.00027397,2]
[426581228,1782629441000,-583.86584169,0.00027562,2]
[426581231,1782629441000,-174.815115,0.000276,2]
[426581244,1782629441000,-3819.02472936,0.000284,2]
[426581238,1782629441000,-1488.12996628,0.000279,2]
[426581241,1782629441000,-1606.84020034,0.00028355,2]
[426581243,1782629441000,-242.14924182,0.00028397,7]
[426581242,1782629441000,-15971.91,0.00028364,7]
[426581217,1782629441000,-242.14924182,0.00027397,7]
[426581240,1782629441000,-3819.02472936,0.000281,2]
[426581249,1782629441000,-160.0,0.00028677,30]
[426581248,1782629441000,-154.0,0.00028668,30]
[426581239,1782629441000,-262.40510032,0.000279,2]
[426581246,1782629441000,-165.30324658,0.00028658,2]
[426581250,1782629441000,-153.0,0.00028677,30]
[426581245,1782629441000,-758.56,0.00028592,2]
[426581247,1782629441000,-157.0,0.00028668,30]
[426581252,1782629441000,-191.0,0.00028678,30]
[426581235,1782629441000,-6756.41699573,0.00027856,2]
[426581218,1782629441000,-1500.0,0.00027397,2]
[426581224,1782629441000,-151.69400281,0.00027397,2]
[426581222,1782629441000,-167.90455944,0.00027397,2]
[426581262,1782629441000,-200.0,0.00029,2]
[426581193,1782629441000,-370.99982477,0.00026396,2]
[426581196,1782629441000,-522.33935194,0.00026684,2]
[426581197,1782629441000,-3819.02472936,0.000268,2]
[426581198,1782629441000,-1000.17377778,0.000268,2]
[426581195,1782629441000,-398.0,0.000266,2]
[426581194,1782629441000,-363.22386272,0.00026397,2]
[426581200,1782629441000,-1488.12996628,0.000268,2]
[426581199,1782629441000,-174.815115,0.000268,2]
[426581202,1782629441000,-947.20989376,0.00026956,2]
[426581205,1782629441000,-815.60265802,0.00026956,2]
[426581204,1782629441000,-994.59740866,0.00026956,2]
[426581201,1782629441000,-262.40510032,0.000268,2]
[426581203,1782629441000,-878.54373775,0.00026956,2]
[426581208,1782629441000,-1000.17377778,0.000271,2]
[426581211,1782629441000,-262.40510032,0.000271,2]
[426581206,1782629441000,-3819.02472936,0.00027,2]
[426581207,1782629441000,-252.0,0.00027051,2]
[426581209,1782629441000,-174.815115,0.000271,2]
[426581210,1782629441000,-1488.12996628,0.000271,2]
[426581223,1782629441000,-335.80911887,0.00027397,2]
[426581212,1782629441000,-3819.02472936,0.000273,2]
[426581213,1782629441000,-1000.17377778,0.000273,2]
[426581214,1782629441000,-174.815115,0.000273,2]
[426581215,1782629441000,-1488.12996628,0.000273,2]
[426581219,1782629441000,-300.0,0.00027397,2]
[426581216,1782629441000,-262.40510032,0.000273,2]
[426581220,1782629441000,-373.28,0.00027397,10]
[426581263,1782629441000,-200.0,0.00029,2]
[426581221,1782629441000,-647.2,0.00027397,10]
[426581253,1782629441000,-157.0,0.00028678,30]
[426581281,1782629441000,-150.0,0.00029052,10]
[426581285,1782629441000,-500.0,0.00029052,10]
[426581290,1782629441000,-150.0,0.00029052,10]
[426581291,1782629441000,-502.5284731,0.00029052,10]
[426581293,1782629441000,-150.0,0.00029052,10]
[426581297,1782629441000,-150.0,0.00029052,10]
[426581301,1782629441000,-150.0,0.00029052,10]
[426581292,1782629441000,-500.0,0.00029052,10]
[426581295,1782629441000,-150.0,0.00029052,10]
[426581294,1782629441000,-500.0,0.00029052,10]
[426581298,1782629441000,-150.0,0.00029052,10]
[426581299,1782629441000,-150.0,0.00029052,10]
[426581300,1782629441000,-150.0,0.00029052,10]
[426581296,1782629441000,-378.34963289,0.00029052,10]
[426581303,1782629441000,-150.0,0.00029052,10]
[426581302,1782629441000,-500.0,0.00029052,2]
[426581304,1782629441000,-500.0,0.00029052,2]
[426581306,1782629441000,-500.0,0.00029052,2]
[426581308,1782629441000,-500.0,0.00029052,2]
[426581310,1782629441000,-500.0,0.00029052,2]
[426581305,1782629441000,-150.0,0.00029052,10]
[426581307,1782629441000,-150.0,0.00029052,10]
[426581311,1782629441000,-150.0,0.00029052,10]
[426581309,1782629441000,-500.0,0.00029052,2]
[426581313,1782629441000,-577.62717727,0.00029052,2]
[426581251,1782629441000,-275.0,0.00028678,30]
[426581314,1782629441000,-150.0,0.00029052,10]
[426581283,1782629441000,-500.0,0.00029052,10]
[426581284,1782629441000,-150.0,0.00029052,10]
[426581312,1782629441000,-500.0,0.00029052,2]
[426581282,1782629441000,-500.0,0.00029052,10]
[426581286,1782629441000,-500.0,0.00029052,10]
[426581260,1782629441000,-681.15489066,0.00028749,2]
[426581259,1782629441000,-3819.02472936,0.000287,2]
[426581256,1782629441000,-159.0,0.00028678,30]
[426581254,1782629441000,-151.0,0.00028678,30]
[426581257,1782629441000,-159.0,0.00028678,30]
[426581261,1782629441000,-160.0,0.00028901,2]
[426581255,1782629441000,-158.0,0.00028678,30]
[426581264,1782629441000,-200.0,0.00029,2]
[426581267,1782629441000,-244.98986467,0.00029,2]
[426581268,1782629441000,-188.1065726,0.00029,2]
[426581269,1782629441000,-150.0,0.00029052,10]
[426581266,1782629441000,-3819.02472936,0.00029,2]
[426581265,1782629441000,-216.61,0.00029,2]
[426581258,1782629441000,-486.0,0.00028678,30]
[426581271,1782629441000,-500.0,0.00029052,10]
[426581278,1782629441000,-150.0,0.00029052,10]
[426581279,1782629441000,-500.0,0.00029052,10]
[426581288,1782629441000,-500.0,0.00029052,10]
[426581289,1782629441000,-500.0,0.00029052,10]
[426581274,1782629441000,-500.0,0.00029052,10]
[426581280,1782629441000,-500.0,0.00029052,10]
[426581276,1782629441000,-500.0,0.00029052,10]
[426581277,1782629441000,-150.0,0.00029052,10]
[426581273,1782629441000,-500.0,0.00029052,10]
[426581272,1782629441000,-500.0,0.00029052,10]
[426581275,1782629441000,-178.15362799,0.00029052,10]
[426581270,1782629441000,-500.0,0.00029052,10]
[426581287,1782629441000,-150.0,0.00029052,10]
[426581355,1782629442000,-666.0,0.00029552,10]
[426581356,1782629442000,-500.0,0.00029552,7]
[426581357,1782629442000,-500.0,0.00029552,7]
[426581353,1782629442000,-670.61826455,0.00029552,10]
[426581344,1782629442000,-5000.0,0.00029511,2]
[426581350,1782629442000,-151.0,0.0002955,7]
[426581351,1782629442000,-300.0,0.00029552,10]
[426581349,1782629442000,-212.08070049,0.00029543,2]
[426581348,1782629442000,-22192.0,0.00029534,2]
[426581347,1782629442000,-5000.0,0.00029511,2]
[426581352,1782629442000,-300.0,0.00029552,10]
[426581354,1782629442000,-300.0,0.00029552,10]
[426581365,1782629442000,-500.0,0.00029552,7]
[426581361,1782629442000,-500.0,0.00029552,7]
[426581362,1782629442000,-500.0,0.00029552,7]
[426581359,1782629442000,-500.0,0.00029552,7]
[426581360,1782629442000,-500.0,0.00029552,7]
[426581364,1782629442000,-500.0,0.00029552,7]
[426581366,1782629442000,-500.0,0.00029552,7]
[426581368,1782629442000,-500.0,0.00029552,7]
[426581363,1782629442000,-500.0,0.00029552,7]
[426581367,1782629442000,-500.0,0.00029552,7]
[426581370,1782629442000,-500.0,0.00029552,2]
[426581369,1782629442000,-500.0,0.00029552,7]
[426581346,1782629442000,-5000.0,0.00029511,2]
[426581358,1782629442000,-500.0,0.00029552,7]
[426581341,1782629442000,-238.87281533,0.000295,2]
[426581329,1782629442000,-3819.02472936,0.000293,2]
[426581342,1782629442000,-6259.90341747,0.000295,2]
[426581323,1782629442000,-150.0,0.00029052,10]
[426581315,1782629442000,-150.0,0.00029052,10]
[426581321,1782629442000,-150.0,0.00029052,10]
[426581318,1782629442000,-150.0,0.00029052,10]
[426581320,1782629442000,-150.0,0.00029052,10]
[426581319,1782629442000,-150.0,0.00029052,10]
[426581316,1782629442000,-150.0,0.00029052,10]
[426581317,1782629442000,-150.0,0.00029052,10]
[426581322,1782629442000,-150.0,0.00029052,10]
[426581324,1782629442000,-150.0,0.00029052,10]
[426581330,1782629442000,-6756.41699573,0.00029344,2]
[426581326,1782629442000,-150.0,0.00029052,10]
[426581343,1782629442000,-7093.85568988,0.00029511,2]
[426581328,1782629442000,-14731.0,0.0002912,20]
[426581327,1782629442000,-160.0,0.00029052,10]
[426581335,1782629442000,-17782.14591207,0.00029444,2]
[426581331,1782629442000,-151.0,0.00029441,7]
[426581333,1782629442000,-500.0,0.00029443,7]
[426581334,1782629442000,-500.0,0.00029443,2]
[426581332,1782629442000,-500.0,0.00029443,7]
[426581337,1782629442000,-2735.2557843,0.00029444,2]
[426581336,1782629442000,-241920.6894398,0.00029444,2]
[426581339,1782629442000,-234.18196686,0.000295,2]
[426581340,1782629442000,-182.8145548,0.000295,30]
[426581338,1782629442000,-164.38788078,0.000295,2]
[426581345,1782629442000,-5000.0,0.00029511,2]
[426581325,1782629442000,-150.0,0.00029052,10]
[426581376,1782629442000,-500.0,0.00029552,2]
[426581372,1782629442000,-500.0,0.00029552,2]
[426581373,1782629442000,-500.0,0.00029552,2]
[426581415,1782629442000,-14999.99,0.0003,2]
[426581405,1782629442000,-782.91618412,0.00029802,2]
[426581414,1782629442000,-24999.99,0.0003,2]
[426581416,1782629442000,-12499.99,0.0003,2]
[426581410,1782629442000,-3100.0,0.000299,10]
[426581411,1782629442000,-705.4411073,0.00029959,2]
[426581409,1782629442000,-200.0,0.000299,2]
[426581407,1782629442000,-500.0,0.00029899,7]
[426581406,1782629442000,-500.0,0.00029899,7]
[426581413,1782629442000,-14999.97,0.0003,2]
[426581408,1782629442000,-251.25301406,0.00029899,10]
[426581418,1782629442000,-203.52,0.0003,2]
[426581429,1782629442000,-178.93,0.0003,2]
[426581417,1782629442000,-2499.99,0.0003,2]
[426581420,1782629442000,-22499.99,0.0003,2]
[426581419,1782629442000,-9999.99,0.0003,2]
[426581421,1782629442000,-150.0,0.0003,2]
[426581422,1782629442000,-14431.67,0.0003,2]
[426581428,1782629442000,-12499.99,0.0003,2]
[426581427,1782629442000,-577.07,0.0003,2]
[426581425,1782629442000,-12499.99,0.0003,2]
[426581424,1782629442000,-15000.0,0.0003,2]
[426581426,1782629442000,-392.12,0.0003,2]
[426581430,1782629442000,-500.0,0.00030069,2]
[426581371,1782629442000,-500.0,0.00029552,2]
[426581404,1782629442000,-1302.09634363,0.000298,2]
[426581403,1782629442000,-2300.0,0.000298,10]
[426581412,1782629442000,-206.13833306,0.00029985,2]
[426581399,1782629442000,-1500.0,0.00029685,2]
[426581374,1782629442000,-500.0,0.00029552,2]
[426581396,1782629442000,-1500.0,0.00029685,2]
[426581375,1782629442000,-500.0,0.00029552,2]
[426581379,1782629442000,-588.72,0.000296,7]
[426581378,1782629442000,-1659244.4847694,0.00029553,2]
[426581377,1782629442000,-16626.5596965,0.00029553,2]
[426581381,1782629442000,-700.0,0.000296,10]
[426581380,1782629442000,-447.83,0.000296,7]
[426581385,1782629442000,-191.0,0.00029678,30]
[426581388,1782629442000,-159.0,0.00029678,30]
[426581384,1782629442000,-275.0,0.00029678,30]
[426581387,1782629442000,-158.0,0.00029678,30]
[426581386,1782629442000,-157.0,0.00029678,30]
[426581382,1782629442000,-157.0,0.00029668,30]
[426581397,1782629442000,-1500.0,0.00029685,2]
[426581401,1782629442000,-1500.0,0.000297,10]
[426581390,1782629442000,-486.0,0.00029678,30]
[426581400,1782629442000,-1583.76792522,0.00029685,2]
[426581398,1782629442000,-1500.0,0.00029685,2]
[426581394,1782629442000,-1500.0,0.00029685,2]
[426581395,1782629442000,-705.4411073,0.00029685,2]
[426581393,1782629442000,-1500.0,0.00029685,2]
[426581392,1782629442000,-1500.0,0.00029685,2]
[426581402,1782629442000,-162.78835444,0.00029717,2]
[426581389,1782629442000,-159.0,0.00029678,30]
[426581383,1782629442000,-154.0,0.00029668,30]
[426581391,1782629442000,-500.0,0.00029685,2]
[426581471,1782629443000,-159.0,0.00030678,30]
[426581467,1782629443000,-275.0,0.00030678,30]
[426581474,1782629443000,-705.4411073,0.00030781,2]
[426581469,1782629443000,-157.0,0.00030678,30]
[426581475,1782629443000,-164.38788078,0.00030793,2]
[426581458,1782629443000,-588.72,0.000305,7]
[426581476,1782629443000,-200.0,0.00030806,2]
[426581477,1782629443000,-6756.41699573,0.00030833,2]
[426581466,1782629443000,-154.0,0.00030668,30]
[426581460,1782629443000,-200.0,0.00030501,2]
[426581468,1782629443000,-191.0,0.00030678,30]
[426581465,1782629443000,-2482.247,0.00030631,26]
[426581472,1782629443000,-159.0,0.00030678,30]
[426581489,1782629443000,-206.95286419,0.00031388,2]
[426581470,1782629443000,-158.0,0.00030678,30]
[426581479,1782629443000,-500.0,0.00031039,7]
[426581478,1782629443000,-1000.0,0.00031,7]
[426581488,1782629443000,-796.95952105,0.00031363,2]
[426581487,1782629443000,-705.4411073,0.00031329,2]
[426581480,1782629443000,-500.0,0.00031039,7]
[426581481,1782629443000,-14731.0,0.0003104,20]
[426581482,1782629443000,-705.4411073,0.00031055,2]
[426581485,1782629443000,-200.0,0.00031116,2]
[426581483,1782629443000,-200.0,0.00031114,2]
[426581490,1782629443000,-588.72,0.000314,7]
[426581454,1782629443000,-680.9526339,0.00030225,7]
[426581473,1782629443000,-486.0,0.00030678,30]
[426581463,1782629443000,-485.83413704,0.00030623,30]
[426581434,1782629443000,-3564.0,0.00030074,2]
[426581457,1782629443000,-151.4268351,0.00030422,10]
[426581491,1782629443000,-447.83,0.000314,7]
[426581432,1782629443000,-700.0,0.0003007,2]
[426581439,1782629443000,-200.0,0.00030074,2]
[426581437,1782629443000,-151.0,0.00030074,2]
[426581440,1782629443000,-150.0,0.00030074,2]
[426581433,1782629443000,-1188.06795322,0.0003007,2]
[426581436,1782629443000,-4558.481,0.00030074,2]
[426581435,1782629443000,-1277.0,0.00030074,2]
[426581431,1782629443000,-700.0,0.0003007,2]
[426581438,1782629443000,-200.0,0.00030074,2]
[426581442,1782629443000,-175.24,0.00030074,2]
[426581441,1782629443000,-150.0,0.00030074,2]
[426581461,1782629443000,-705.4411073,0.00030507,2]
[426581443,1782629443000,-216.0,0.00030074,2]
[426581446,1782629443000,-150.0,0.00030074,2]
[426581447,1782629443000,-830.51883227,0.00030074,2]
[426581449,1782629443000,-150.418,0.00030074,2]
[426581452,1782629443000,-304.95,0.000301,2]
[426581451,1782629443000,-184.49,0.00030085,2]
[426581448,1782629443000,-211.15716773,0.00030074,2]
[426581450,1782629443000,-14731.0,0.0003008,20]
[426581455,1782629443000,-765.64700813,0.00030232,2]
[426581453,1782629443000,-200.0,0.00030199,2]
[426581456,1782629443000,-705.4411073,0.00030233,2]
[426581459,1782629443000,-447.83,0.000305,7]
[426581462,1782629443000,-758.56,0.00030535,2]
[426581444,1782629443000,-150.0,0.00030074,2]
[426581495,1782629443000,-154.0,0.00031668,30]
[426581464,1782629443000,-172.522,0.00030631,26]
[426581492,1782629443000,-1000.0,0.00031439,30]
[426581520,1782629443000,-214.1092993,0.00032272,2]
[426581523,1782629443000,-195.61696835,0.00032386,2]
[426581525,1782629443000,-687.0,0.000324,2]
[426581529,1782629443000,-154.0,0.00032668,30]
[426581528,1782629443000,-231.15941818,0.0003266,2]
[426581530,1782629443000,-275.0,0.00032678,30]
[426581539,1782629443000,-150.0,0.0003269,7]
[426581531,1782629443000,-191.0,0.00032678,30]
[426581541,1782629443000,-150.0,0.0003269,7]
[426581537,1782629443000,-150.0,0.0003269,7]
[426581536,1782629443000,-150.0,0.0003269,7]
[426581540,1782629443000,-150.0,0.0003269,7]
[426581535,1782629443000,-486.0,0.00032678,30]
[426581532,1782629443000,-158.0,0.00032678,30]
[426581533,1782629443000,-159.0,0.00032678,30]
[426581534,1782629443000,-159.0,0.00032678,30]
[426581538,1782629443000,-150.0,0.0003269,7]
[426581543,1782629443000,-150.0,0.0003269,7]
[426581553,1782629443000,-705.4411073,0.00032809,2]
[426581555,1782629443000,-14731.0,0.0003296,20]
[426581542,1782629443000,-150.0,0.0003269,7]
[426581557,1782629443000,-700.0,0.0003297,2]
[426581548,1782629443000,-630.53,0.00032754,7]
[426581546,1782629443000,-262.24,0.00032747,3]
[426581545,1782629443000,-705.4411073,0.00032699,2]
[426581544,1782629443000,-180.833,0.0003269,7]
[426581496,1782629443000,-275.0,0.00031678,30]
[426581524,1782629443000,-846.39216534,0.00032387,2]
[426581522,1782629443000,-195.61696835,0.00032386,2]
[426581559,1782629443000,-187.08964383,0.0003297,2]
[426581519,1782629443000,-818.16,0.00032232,7]
[426581550,1782629443000,-283.85,0.00032806,30]
[426581498,1782629443000,-166.0,0.00031678,30]
[426581493,1782629443000,-3075.0,0.00031507,120]
[426581494,1782629443000,-705.4411073,0.00031603,2]
[426581502,1782629443000,-486.0,0.00031678,30]
[426581499,1782629443000,-158.0,0.00031678,30]
[426581500,1782629443000,-159.0,0.00031678,30]
[426581501,1782629443000,-159.0,0.00031678,30]
[426581503,1782629443000,-1085.0,0.0003169,5]
[426581512,1782629443000,-2735.2557843,0.00032066,2]
[426581511,1782629443000,-502.0,0.00032055,2]
[426581513,1782629443000,-164.38788078,0.00032085,2]
[426581508,1782629443000,-1172.82,0.00031833,2]
[426581497,1782629443000,-191.0,0.00031678,30]
[426581505,1782629443000,-272.04,0.00031739,3]
[426581506,1782629443000,-1322.0,0.00031757,5]
[426581526,1782629443000,-705.4411073,0.00032425,2]
[426581518,1782629443000,-360.54,0.00032232,7]
[426581517,1782629443000,-447.83,0.000322,7]
[426581516,1782629443000,-588.72,0.000322,7]
[426581527,1782629443000,-210.0,0.000326,2]
[426581521,1782629443000,-6756.41699573,0.00032322,2]
[426581509,1782629443000,-705.4411073,0.00031877,2]
[426581504,1782629443000,-1380.0,0.0003169,5]
[426581514,1782629443000,-16626.5596965,0.00032139,2]
[426581515,1782629443000,-705.4411073,0.00032151,2]
[426581510,1782629443000,-14731.0,0.00032,20]
[426581507,1782629443000,-1000.0,0.00031833,2]
[426581632,1782629444000,-185.26,0.00033212,2]
[426581627,1782629444000,-151.0,0.00033212,2]
[426581623,1782629444000,-151.0,0.00033212,2]
[426581636,1782629444000,-151.0,0.00033212,2]
[426581638,1782629444000,-151.0,0.00033212,2]
[426581641,1782629444000,-268.59,0.00033213,2]
[426581629,1782629444000,-151.0,0.00033212,2]
[426581643,1782629444000,-235.97,0.00033213,2]
[426581645,1782629444000,-151.0,0.00033216,2]
[426581625,1782629444000,-151.0,0.00033212,2]
[426581656,1782629444000,-573.82,0.00033216,2]
[426581650,1782629444000,-151.0,0.00033216,2]
[426581652,1782629444000,-151.0,0.00033216,2]
[426581654,1782629444000,-151.0,0.00033216,2]
[426581658,1782629444000,-396.26,0.00033216,2]
[426581661,1782629444000,-630.52,0.00033345,2]
[426581660,1782629444000,-158.27034204,0.00033322,2]
[426581659,1782629444000,-165.70268454,0.00033314,2]
[426581662,1782629444000,-705.4411073,0.00033354,2]
[426581634,1782629444000,-151.0,0.00033212,2]
[426581664,1782629444000,-234.18196685,0.00033378,2]
[426581647,1782629444000,-151.0,0.00033216,2]
[426581620,1782629444000,-151.0,0.00033212,2]
[426581595,1782629444000,-151.0,0.00033212,2]
[426581615,1782629444000,-151.0,0.00033212,2]
[426581663,1782629444000,-164.38788078,0.00033378,2]
[426581562,1782629444000,-160.0,0.00033,30]
[426581575,1782629444000,-1277.0,0.00033074,2]
[426581573,1782629444000,-3564.0,0.00033074,2]
[426581577,1782629444000,-150.0,0.00033074,2]
[426581589,1782629444000,-705.4411073,0.00033081,2]
[426581587,1782629444000,-935.0,0.00033074,2]
[426581579,1782629444000,-150.0,0.00033074,2]
[426581591,1782629444000,-174.70925297,0.00033082,14]